Cogmind - Beta 16 @@@ ROGUE MODE // 2025.10.26 @ 17:32:20 Player: unq Result: Destroyed by YI-UF0 with YI-UF0's Doublenader Performance ------------- Evolutions (0) 0 Regions Visited (2) 400 Robots Destroyed (38) 190 Value Destroyed (690) 690 Prototype IDs (3) 60 Alien Tech Used (0) 0 Bonus (25) 25 TOTAL SCORE: 1365 Bonus ------- Follower Combat Kills 25 Cogmind --------- Core Integrity 0/250 Matter 255/300 Energy 85/100 System Corruption 0% Temperature Cool (0) Movement Core (350) Ox6 Location -10/Mines Parts ------- > --- POWER (1) -------- (None) > --- PROPULSION (2) --- (None) > --- UTILITY (2) ------ Large Storage Unit > --- WEAPON (2) ------- Mini Grenade Launcher > --- INVENTORY (15) --- Light Ion Engine Improved Heat Sink Medium Storage Unit High-capacity Matter Pod (200) Signal Interpreter Seismic Detector Assault Rifle Minigun Datajack Mining Laser Great Maul Peak State ------------ > --- POWER ------------ Ion Engine > --- PROPULSION ------- Light Treads Light Treads > --- UTILITY ---------- Large Storage Unit Hacking Suite > --- WEAPON ----------- Improved EM Shotgun Improved EM Shotgun > --- INVENTORY -------- Light Ion Engine Heat Sink Heat Sink Medium Storage Unit High-capacity Matter Pod Signal Interpreter Seismic Detector Improved EM Shotgun Beam Cannon Assault Rifle Minigun Mini Grenade Launcher Datajack Mining Laser Great Maul [Rating: 15] Favorites ----------- Power Light Ion Engine Engine Light Ion Engine Propulsion Light Treads Treads Light Treads Utility Large Storage Unit Device Seismic Detector Storage Large Storage Unit Hackware Hacking Suite Weapon Improved EM Shotgun Energy Gun Improved EM Shotgun Energy Cannon Beam Cannon Ballistic Gun Assault Rifle Launcher Grenade Launcher Special Weapon Mining Laser Build | -11 -10 -10 ------- Run | Yrd Mat Min Slots Evolved . | . . . Power . | . . . Propulsion . | . . . Utility . | . . . Weapon . | . . . Parts Attached 25 | 9 11 5 Power 4 | 1 3 . Engine 4 | 1 3 . Core . | . . . Reactor . | . . . Propulsion 2 | 2 . . Treads 2 | 2 . . Leg . | . . . Wheel . | . . . Hover . | . . . Flight . | . . . Utility 9 | 3 4 2 Device 4 | 1 2 1 Storage 3 | 2 1 . Processor . | . . . Hackware 2 | . 1 1 Protection . | . . . Artifact . | . . . Weapon 10 | 3 4 3 Energy Gun 5 | 2 3 . Energy Cannon 1 | . . 1 Ballistic Gun 1 | 1 . . Ballistic Cannon . | . . . Launcher 2 | . . 2 Special Weapon 1 | . 1 . Impact Weapon . | . . . Slashing Weapon . | . . . Piercing Weapon . | . . . Special Melee Weapon . | . . . Unidentified Prototypes 1 | . 1 . Parts Lost 12 | . 3 9 Power 3 | . 2 1 Propulsion 2 | . . 2 Utility 2 | . 1 1 Weapon 5 | . . 5 Highest Loss Streak 9 | . 2 9 To Critical Strikes . | . . . Average Backups 12 | 1 13 14 Power . | . . 1 Propulsion . | . . . Utility 5 | . 5 5 Weapon 6 | . 6 7 Tool/Special . | . . . Unused Backups 13 | . 4 9 Power 2 | . 1 1 Propulsion . | . . . Utility 7 | . 2 5 Weapon 3 | . 1 2 Tool/Special 1 | . . 1 Average Slot Usage (%) 99 | . 99 97 Engine 13 | . 13 13 Treads 27 | . 28 26 Device 13 | . 13 11 Storage 14 | . 14 14 Energy Gun 25 | . 25 27 Ballistic Gun 1 | . 2 . Peak Build Rating 15 | 7 14 15 Average Rating 11 | 5 12 12 On Entrance 6 | . 7 11 Avg Prop Armor Cover (%) . | . . . Naked Turns . | . . . Heaviest Build 32 | 17 32 32 Greatest Support 40 | 40 40 40 Greatest Overweight (x) 1 | . . 1 Average Overweight (x) . | . . . Largest Inventory Capacity 15 | 8 15 15 Average Capacity 14 | 7 14 15 Most Carried 15 | 5 15 15 Average Carried 13 | 1 13 14 Final Capacity 15 | 8 15 15 Final Carried 15 | 5 15 11 Class Distribution -------------------- 100% | Mutant Dominant Class ---------------- Mutant | -10/Materials Mutant | -10/Mines Resources | -11 -10 -10 ----------- Run | Yrd Mat Min Matter Collected 708 | 310 338 60 Remotely . | . . . Salvage Created 1102 | 159 787 156 Parts 81 | 12 55 14 Haulers Intercepted 1 | . 1 . Recyclers Shooed . | . . . Parts Field Recycled . | . . . Retrieved Matter . | . . . Parts Self-Destructed . | . . . Prevented . | . . . Parts Restored . | . . . Kills | -11 -10 -10 ------- Run | Yrd Mat Min Combat Hostiles Destroyed 21 | . 14 7 Guns 16 | . 10 6 AOE 5 | . 4 1 Classes Destroyed 8 | 3 5 . Worker 7 | 1 6 . Tunneler 3 | 2 1 . Hauler 1 | . 1 . Recycler 1 | 1 . . Operator 2 | . 2 . Watcher 3 | . 3 . Swarmer 9 | . 3 6 Grunt 12 | . 11 1 Best Kill Streak 4 | 3 4 3 Combat Bots Only 3 | . 3 3 Max Kills in Single Turn 2 | 2 2 1 Gunslinging . | . . . Exploded 1 | . 1 1 Melee . | . . . Uniques/NPCs Destroyed . | . . . Combat | -11 -10 -10 -------- Run | Yrd Mat Min Hostile Shots Fired 87 | . 37 50 Missed 24 | . 8 16 Hits 63 | . 29 34 Projectile 63 | . 29 34 AOE 25 | . . 25 Damage Taken 1324 | . 435 889 Core 259 | . 66 193 Absorbed by Shields . | . . . Regen/Repaired (Parts) 65 | . 65 . Core Remaining (%) 100 | 100 . . Volleys Fired 68 | 8 43 17 Largest 2 | 2 2 2 Hottest 105 | 70 100 105 Shots Fired 124 | 16 79 29 Gun 116 | 16 76 24 Cannon 2 | . . 2 Launcher 3 | . . 3 Special 3 | . 3 . Kinetic 15 | 8 7 . Thermal 14 | 8 4 2 Explosive 3 | . . 3 Electromagnetic 92 | . 68 24 Robot Hit Streak 13 | 4 13 5 Robot Miss Streak 5 | 2 5 5 Penetration Max . | . . . Secondary Targets 1 | . 1 . Max Gunslinging Chain 1 | . 1 . Shots Hit Robots 85 | 9 57 19 Core Hits 52 | 5 38 9 Critical Kills . | . . . Critical Parts Destroyed . | . . . Critical Strikes 1 | 1 . . Burn 1 | 1 . . Melee Attacks . | . . . Impact . | . . . Slashing . | . . . Piercing . | . . . Sneak Attacks . | . . . Combat Hostiles . | . . . Follow-up Attacks . | . . . Damage Inflicted 1693 | 125 1286 282 Guns 1225 | 125 935 165 Cannons 35 | . . 35 Explosions 388 | . 315 73 Melee . | . . . Ramming 21 | . 12 9 Kinetic 86 | 63 23 . Thermal 475 | 62 352 61 Explosive 47 | . . 47 Electromagnetic 1064 | . 899 165 Impact . | . . . Slashing . | . . . Piercing . | . . . Highest Corruption . | . . . Average Corruption . | . . . Corruption Purged . | . . . Corruption Blocked . | . . . Overload Shots . | . . . Overflow Damage 22 | . 16 6 Projectiles 6 | . . 6 Explosions 16 | . 16 . Melee . | . . . Knockbacks . | . . . Impact . | . . . Kinetic . | . . . Secondary . | . . . Self-Inflicted Damage 157 | . 122 35 Shots 5 | . 4 1 Rammed 2 | . 1 1 Targets Rammed 4 | . 3 1 Kicked . | . . . Crushed 2 | . 2 . Highest Temperature 192 | 36 192 120 Average Temperature 50 | 15 60 35 Received Heat Transfer 180 | . 135 45 Siege Activations . | . . . Martial Activations . | . . . Shielding Activations . | . . . Robots Disrupted 1 | . 1 . Combat Hostiles 1 | . 1 . Robots Corrupted . | . . . Combat Hostiles . | . . . Parts Fried 5 | . 4 1 Impact Corruptions . | . . . Robots Melted . | . . . Combat Hostiles . | . . . Parts Melted 2 | . 1 1 Heat Transferred 920 | 259 537 124 Parts Sabotaged . | . . . Parts Stolen . | . . . Parts Stripped . | . . . Power Chain Reactions 9 | . 7 2 Alert | -11 -10 -10 ------- Run | Yrd Mat Min Maximum Alert Level . | . . . Low Security (%) 100 | 100 100 100 Level 1 . | . . . Level 2 . | . . . Level 3 . | . . . Level 4 . | . . . Level 5 . | . . . High Security . | . . . Max Security . | . . . Peak Influence 137 | 10 137 124 Initial 40 | . . 40 Average 46 | 1 42 77 Influence Increases 869 | 20 562 287 Destroy 0b10 Robot/C 440 | . 280 160 Destroy 0b10 Robot/NC 85 | 20 65 . Destroy Leader 98 | . 68 30 Allied During Kill 6 | . . 6 Successful Hack 30 | . 30 . Disable Machine 75 | . 75 . Destroy Structure 45 | . 29 16 Partial Spotted 15 | . . 15 Lose Combat Pursuer 75 | . 15 60 Influence Decreases 858 | 20 456 382 Entered New Map 66 | . . 66 Time Decay 652 | 20 426 206 Lost Part 120 | . 30 90 Lost Ally 20 | . . 20 Squads Dispatched 4 | . 3 1 Investigation 2 | . 1 1 Extermination . | . . . Reinforcement 2 | . 2 . Assault . | . . . Garrison . | . . . Intercept . | . . . Searches Triggered . | . . . Construction Impeded . | . . . Haulers Reinforced . | . . . Active Scanning Responses . | . . . Cargo Convoy Interrupts . | . . . Stealth | -11 -10 -10 --------- Run | Yrd Mat Min Distress Signals . | . . . Communications Jammed . | . . . Distress Signals . | . . . Times Spotted 38 | . 24 14 Peak Tracking Total 3 | . 3 3 Tactical Retreats 4 | . 1 3 Traps | -11 -10 -10 ------- Run | Yrd Mat Min Traps Triggered 1 | . 1 . Indirectly . | . . . Trap Hack Attempts . | . . . Triggered . | . . . Disarmed . | . . . Reprogrammed . | . . . Reused . | . . . Traps Extracted . | . . . Installed . | . . . Triggered . | . . . Machines | -11 -10 -10 ---------- Run | Yrd Mat Min Machines Disabled 5 | . 5 . Max in Single Turn 1 | . 1 . Machines Repaired . | . . . Machines Dismantled . | . . . Machines Sabotaged . | . . . Overloaded Fab Kills . | . . . Hacking | -11 -10 -10 --------- Run | Yrd Mat Min Machines Accessed 11 | . 10 1 Terminals 7 | . 7 . Fabricators . | . . . Repair Stations 1 | . 1 . Recycling Units 2 | . 2 . Scanalyzers . | . . . Garrison Access . | . . . Total Hacks 28 | . 27 1 Successful 19 | . 18 1 Failed 9 | . 9 . Catastrophic 1 | . 1 . Database Lockouts . | . . . Manual 17 | . 17 . Terminals 18 | . 18 . Fabricators . | . . . Repair Stations 2 | . 2 . Recycling Units 7 | . 7 . Scanalyzers . | . . . Garrison Access . | . . . Terminal Hacks 5 | . 4 1 Robot Analysis 1 | . 1 . Prototype ID Bank 1 | . 1 . Open Door 1 | . . 1 Locate Traps 1 | . 1 . Hauler Manifests 1 | . 1 . Fabricator Hacks . | . . . Repair Station Hacks 2 | . 2 . Scan Component 1 | . 1 . Repair 1 | . 1 . Recycling Unit Hacks 1 | . 1 . Retrieve Components 1 | . 1 . Scanalyzer . | . . . Garrison Access Hacks . | . . . Unauthorized Hacks 11 | . 11 . Terminals 9 | . 9 . Botnet 2 | . 2 . Skim 7 | . 7 . Fabricators . | . . . Repair Stations . | . . . Recycling Units 2 | . 2 . Reject 1 | . 1 . Recyclers 1 | . 1 . Scanalyzers . | . . . Garrison Access . | . . . Data Cores Recovered 1 | . 1 . Used . | . . . Hacking Detections 9 | . 9 . Full Trace Events 1 | . 1 . Feedback Events . | . . . Feedback Blocked . | . . . Robot Schematics Acquired . | . . . Robots Built . | . . . Authchips . | . . . Time . | . . . Total Robot Build Rating . | . . . Part Schematics Acquired . | . . . Parts Built . | . . . Authchips . | . . . Time . | . . . Total Part Build Rating . | . . . Part Studies Acquired . | . . . Parts Repaired 1 | . 1 . Time 51 | . 51 . Parts Recycled . | . . . Recycled Matter . | . . . Retrieved Matter . | . . . Retrieved Components 9 | . 9 . Parts Scanalyzed . | . . . Part Schematics Acquired . | . . . Parts Damaged . | . . . Bothacking | -11 -10 -10 ------------ Run | Yrd Mat Min Used RIF Installer . | . . . Robots Hacked . | . . . Non-combat . | . . . Combat . | . . . Robot Hacks Applied . | . . . Relay Couplers Released . | . . . Fabnet Peak Effective % . | . . . Robots Rewired . | . . . Allies Hacked . | . . . Hacks Repelled . | . . . Allies | -11 -10 -10 -------- Run | Yrd Mat Min Total Allies 1 | . . 1 Largest Group 1 | . . 1 Highest-Rated Group 31 | . . 31 Highest-Rated Ally 31 | . . 31 Total Orders . | . . . Ally Attacks 7 | . . 7 Total Damage 42 | . . 42 Kills 1 | . . 1 Allies Corrupted . | . . . Allies Melted . | . . . Intel | -11 -10 -10 ------- Run | Yrd Mat Min Active Infowar (turns) 2083 | 35 1747 301 Seismic 2083 | 35 1747 301 Robot Analysis Total 1 | . 1 . Derelict Logs Recovered 1 | . . 1 Drone Launches . | . . . Drone Recoveries . | . . . Exploration | -11 -10 -10 ------------- Run | Yrd Mat Min Turns Passed 2352 | 150 1780 422 Spaces Moved 1057 | 70 769 218 Core 3 | 3 . . Treads 1054 | 67 769 218 Legs . | . . . Wheels . | . . . Hover . | . . . Flight . | . . . Fastest Speed 50 | 50 160 160 Average Speed 159 | 155 160 160 Slowest Speed 240 | 160 160 240 Overloaded Moves . | . . . Propulsion Burnouts . | . . . Robots Hopped . | . . . Potential Cave-ins . | . . . Cave-ins Triggered . | . . . Exploration Rate (%) 46 | 6 97 36 Regions Visited 2 Branch Regions 1 Pre-discovered Areas 2 | . 1 1 Known Exits Taken . | . . . Unknown Exits Taken 2 | 1 1 . Scrap Searched . | . . . Spaces Dug . | . . . Terrain Destroyed 46 | . 24 22 Melee . | . . . Projectile . | . . . AOE 46 | . 24 22 Terrain Rammed . | . . . Walls Destroyed . | . . . Machines Disabled . | . . . Actions | -11 -10 -10 --------- Run | Yrd Mat Min Total 1587 | 91 1233 263 Wait 370 | . 365 5 Move 1055 | 69 768 218 Hop . | . . . Pick Up 32 | 4 22 6 Fast Attach 9 | 8 1 . Attach 9 | . 4 5 Detach 4 | 1 2 1 Swap 15 | 1 9 5 Drop 14 | . 9 5 Fire 68 | 8 43 17 Melee . | . . . Ram . | . . . Kick . | . . . Crush 4 | . 3 1 Escape Stasis . | . . . Rewire 7 | . 7 . Trap . | . . . Miscellaneous . | . . . Route ------- -11/Scrapyard -10/Materials (discovered 5 exits: [*Mat x3] / *Min / *Sub) -10/Mines (discovered 2 exits: [*Mat] / *Sub) History --------- Turn | Location | Event 6 | -11/Scrapyard | Discovered new exit (range 16) 151 | -11/Scrapyard | Entered Materials 288 | -10/Materials | Discovered new exit (range 5) 301 | -10/Materials | Build established: Mutant 511 | -10/Materials | Discovered new exit (range 7) 1338 | -10/Materials | Discovered new exit (range 14) 1569 | -10/Materials | Learned 4 Subcaves zone layouts 1590 | -10/Materials | Repaired Imp. EM Shotgun 1647 | -10/Materials | Identified exit to Subcaves 1673 | -10/Materials | Learned Storage trap positions 1688 | -10/Materials | Learned Storage terminal intel 1694 | -10/Materials | Learned Recycling recycling unit intel 1709 | -10/Materials | Discovered new exit (range 16) 1736 | -10/Materials | Loaded intel: 8 terminal locations 1931 | -10/Materials | Entered Mines 1940 | -10/Mines | Escorted by a lone wolf Derelict 1960 | -10/Mines | Learned location of Storage (-9) 1985 | -10/Mines | Learned Materials emergency access door positions 2017 | -10/Mines | Discovered new exit (range 5) 2049 | -10/Mines | Met a Derelict shopkeep closing up shop 2101 | -10/Mines | Discovered exit to Subcaves (range 6) 2335 | -10/Mines | Core integrity fell below 50% 2346 | -10/Mines | Core integrity fell below 20% 2353 | -10/Mines | Destroyed by YI-UF0 with YI-UF0's Doublenader Last Messages --------------- 02336_ Lgt. Treads destroyed. 02338_ U-05 Engineer lays Concrete. 02340_ Destroyed Shock Absorption System. 02340_ U-05 Engineer builds a Wall. 02341_ Imp. EM Shotgun destroyed. 02341_ Ion Engine destroyed. 02342_ The unstable cave ceiling collapses. 02343_ Imp. Heat Sink destroyed. 02345_ The unstable cave ceiling collapses. 02345_ Beam Cannon destroyed. 02345_ U-05 Engineer lays Concrete. 02346_ YI-UF0 mumbles something. 02346_ U-05 Engineer lays Concrete. 02347_ U-05 Engineer builds a Wall. 02351_ The unstable cave ceiling collapses. 02351_ Grenade Launcher destroyed. 02352_ The unstable cave ceiling collapses. 02352_ U-05 Engineer lays Concrete. [Achievement: Hydra] 02353_ The unstable cave ceiling collapses. Map ----- +----------------------------------------------------+ | ?????????????????????????????????????????????????? | | ?????????????????????????????????????????????????? | | ?????????????????????????????????????????????????? | | ?????????????????????????????????????????????????? | | ?????????????????????????????????????????????????? | | ?????????????????????????????????????????????????? | | ?????????????????????????????????????????????????? | | ??????????????????????????????????????##########?? | | ??????????????????????????????????????# #?? | | ??????????????????????????????????????# """ #?? | | ?????????????????????????? ???????????# """ #?? | | ?????????????????????????? ?????????### """ #?? | | ???????????????????????### ??????######[ #?? | | ???????????????????????# # #?????# %*=[ """ #?? | | ???????????????????????# #$#######[###% """ #?? | | ??????????????????????## # ##%#### """ #?? | | ??????????????????????# # ##!#??# #?? | | ??????????????????????# # [ # ##!#### """ #?? | | ?????????????????????## [ # ## ## """ #?? | | ?????????????????????# g # """ #?? | | ?????????????# ??????? # #?? | | ?????????????? ###### % ! ####### ###?? | | ???????????????? #?????# #???? | | ?????????????????? #?????# #???? | | ???????????????????### #####??# ????? | | ?????????????????### @ ## ##?# ?? ????? | | ?????????????????# ##??# #??####??? | | ?????????????????# u ##???# #??## ##?? | | ?????????????????# ##???# #?## #?? | | ?????????????????# # # ####?# ### #?? | | ??????????????#### # # ### ## #??? | | ??????????????# #### ###### #??? | | ??????????????# #??## ###????# ##### ##??? | | ??????????????# #####???####??????# #??## ##???? | | ?????????????## ######????????????# #??# #????? | | ????????????## ##???????????# #??# ##???? | | ???????????## #???????????#=#?## #???? | | ??????????## #######???#####???#%#?# #???? | | ??????????# ##?????????# ##??#=#?# #???? | | ??????????# ###????????# #??#*#?# ##???? | | ??????????## ####???????# < ####=#?## ##????? | | ???????????## #####??????# ## [##?# ##????? | | ?????????##### % ##??#### #?# [%#????? | | ?????????#" ### #### ## #?# ==#????? | | ?????????#" !# !%= %= #### ##?##%!##????? | | ?????????#"! [ =%! #??#####???####?????? | | ?????????#"= [ ## # ##?????######???????? | | ?????????#"! /#X ## ## ###### #???????? | | ?????????#"=### ### ## + #???????? | | ?????????####?### #?# ### + #???????? | +----------------------------------------------------+ Best States ------------- Heat Dissipation 39 Energy Generation 10 Energy Capacity 250 Matter Stores 300 Matter Capacity 300 Sight Range 16 Terrain Scan Density 10 Evasion (%) 40 Recoil Reduction 2 Offensive Hacking 10 Item Schematics ----------------- None Robot Schematics ------------------ None Fabricated ------------ Nothing Repaired ---------- Imp. EM Shotgun | 7% | -10/Materials Studied --------- None Alien Tech Used ----------------- None Achievements -------------- Hydra Challenges ------------ None Game ------ Seed PhaseAblativePower Manual? 0 Play Time 00:27:34 Cumulative 175.8 hours Start 2025.10.26 @ 17:04:12 End 2025.10.26 @ 17:32:20 Sessions 1 Manual Loads 0 Difficulty Rogue Special Mode None Game No. 61 Rogue 61 Adventurer 0 Explorer 0 Win Type - Total 1 Types 1/0/0/0/0/0/0/0/0/0 Lore% 48 Gallery% 46 Achievement% 29 Wizard Run 0 Options --------- Layout 0 ASCII 1 Keyboard 1 Movement Arrows Keybinds 0 Fullscreen 1 Font 24/Smallcaps Map View 76x50 Zoom Use 0% Tactical HUD 1 Map Filters NONE Filters NONE Steam 1 RUN: deb9d0bb-976b-408f-80d6-1a12e108aff2